bitfinex/quotes_ETHUSD_20220731
["timestamp","ask_amount","ask_price","bid_price","bid_amount"]
[1659236295343,0.742,1697.0,1696.3,3.0997]
[1659236299104,0.25110856,1696.9,1696.3,3.0997]
[1659236299809,0.25110856,1696.9,1696.3,6.15558063]
[1659236300419,0.25110856,1696.9,1696.3,5.79948063]
[1659236309423,3.28300856,1696.9,1696.3,5.79948063]
[1659236309563,3.58300856,1696.9,1696.3,5.79948063]
[1659236310597,3.28300856,1696.9,1696.4,2.89804672]
[1659236310774,3.28300856,1696.9,1696.4,6.39804672]
[1659236310974,3.28300856,1696.9,1696.5,3.19769797]
[1659236310975,3.0319,1696.9,1696.5,3.19769797]
[1659236313604,3.0319,1696.9,1696.5,2.99769797]
[1659236314540,6.48779725,1696.8,1696.3,2.7436]
[1659236314746,2.98779725,1696.8,1696.3,5.64164672]
[1659236314908,3.3319,1696.9,1696.3,5.64164672]
[1659236315214,0.25110856,1696.8,1696.3,5.64164672]
[1659236315600,0.25110856,1696.8,1696.1,16.8851]
[1659236315601,3.75110856,1696.8,1696.1,11.4914]
[1659236315927,3.75110856,1696.8,1696.1,17.83944672]
[1659236315928,0.69310856,1696.8,1696.1,17.83944672]
[1659236316439,3.45060856,1696.8,1696.1,17.83944672]
[1659236316646,3.45060856,1696.8,1696.1,14.33944672]
[1659236317106,3.45060856,1696.8,1696.1,17.93622216]
[1659236317428,3.45060856,1696.8,1696.1,14.43622216]
[1659236317637,3.45060856,1696.8,1696.1,17.93622216]
[1659236318149,3.45060856,1696.8,1696.2,2.89804672]
[1659236318317,3.00860856,1696.8,1696.2,2.89804672]
[1659236318920,3.00860856,1696.8,1696.2,2.9065637]
[1659236320303,3.00860856,1696.8,1696.2,3.00333914]
[1659236321330,3.00589192,1696.8,1696.2,3.00333914]
[1659236323334,22.78133561,1696.7,1696.2,3.00333914]
[1659236323732,22.78133561,1696.7,1696.2,6.50333914]
[1659236323967,22.78133561,1696.7,1696.3,2.89804672]
[1659236324167,22.78133561,1696.7,1696.3,6.21354027]
[1659236324841,22.78133561,1696.7,1696.4,2.89804672]
[1659236325043,22.78133561,1696.7,1696.4,6.49782937]
[1659236325272,22.78133561,1696.7,1696.5,2.89804672]
[1659236327185,22.78133561,1696.7,1696.4,0.09978265]
[1659236327478,22.78133561,1696.7,1696.3,3.3801]
[1659236327640,22.78133561,1696.7,1696.3,6.27814672]
[1659236327842,22.78133561,1696.7,1696.3,3.3801]
[1659236330345,22.78133561,1696.7,1696.3,3.0801]
[1659236330547,22.78133561,1696.7,1696.1,8.1081]
[1659236330548,22.98133561,1696.7,1696.1,8.1081]
[1659236333603,22.78133561,1696.7,1696.1,8.21581723]
[1659236334300,0.24793891,1696.6,1696.1,8.21581723]
[1659236335282,0.24793891,1696.6,1696.1,15.21581723]
[1659236336641,0.24793891,1696.6,1696.1,8.21581723]
[1659236336998,0.24793891,1696.6,1696.1,15.21581723]
[1659236337199,0.24793891,1696.6,1696.1,18.11386395]
[1659236344321,0.24518693,1696.6,1696.1,18.11386395]
[1659236344520,0.24518693,1696.6,1696.1,11.11386395]
[1659236344724,0.24518693,1696.6,1696.1,18.11386395]
[1659236345639,0.24518693,1696.6,1696.1,15.21581723]
[1659236347895,0.24518693,1696.6,1696.1,18.43781723]
[1659236351966,3.74518693,1696.6,1696.1,18.3301]
[1659236352353,6.92738693,1696.6,1696.1,18.3301]
[1659236352578,3.42738693,1696.6,1696.1,18.3301]
[1659236355499,3.42738693,1696.6,1696.1,11.3301]
[1659236355748,3.42738693,1696.6,1696.1,18.3301]
[1659236355910,6.92738693,1696.6,1696.1,18.3301]
[1659236356108,3.42738693,1696.6,1696.1,18.3301]
[1659236361445,3.42738693,1696.6,1696.1,11.3301]
[1659236361858,3.42738693,1696.6,1696.1,18.3301]
[1659236362275,3.42738693,1696.6,1696.1,11.3301]
[1659236362440,3.42738693,1696.6,1696.1,18.3301]
[1659236364072,3.42738693,1696.6,1696.1,11.3301]
[1659236364290,3.42738693,1696.6,1696.1,18.3301]
[1659236364425,3.42738693,1696.6,1696.1,18.32804182]
[1659236364861,6.92738693,1696.6,1696.1,18.32804182]
[1659236365900,3.42738693,1696.6,1696.1,18.32804182]
[1659236368461,3.42738693,1696.6,1696.1,29.24509988]
[1659236369081,3.42738693,1696.6,1696.1,32.1431466]
[1659236369496,13.96130295,1696.5,1696.1,32.1431466]
[1659236369664,13.96130295,1696.5,1696.1,24.03710478]
[1659236370512,13.96130295,1696.5,1696.3,3.5]
[1659236373011,13.96130295,1696.5,1696.2,6.31490764]
[1659236374217,13.96130295,1696.5,1696.2,3.0]
[1659236377297,13.96130295,1696.5,1696.1,10.222]
[1659236377508,13.96130295,1696.5,1696.1,3.222]
[1659236377662,13.96130295,1696.5,1696.1,6.722]
[1659236377864,13.96130295,1696.5,1696.1,3.222]
[1659236378255,13.96130295,1696.5,1696.1,6.722]
[1659236379557,3.9421,1696.4,1695.8,0.05]
[1659236379801,3.9421,1696.4,1695.6,3.2755]
[1659236379802,6.4827,1696.3,1695.6,3.2755]
[1659236379959,3.5,1696.2,1695.6,3.2255]
[1659236380160,3.2827,1696.3,1695.6,3.2255]
[1659236380161,14.7739,1696.3,1695.6,3.2255]
[1659236380361,0.24518693,1696.1,1695.6,3.2255]
[1659236380797,0.24518693,1696.1,1695.6,6.12354672]
[1659236382525,0.24518693,1696.1,1695.7,2.89804672]
[1659236382822,10.9739,1696.3,1695.8,3.29952742]
[1659236383031,3.2284603,1696.4,1695.9,17.76148341]
[1659236383224,3.2249,1696.4,1696.0,2.89804672]
[1659236383932,2.8518,1696.6,1696.1,3.59952742]
[1659236384093,2.8518,1696.6,1696.1,9.81306769]
[1659236384094,5.9874,1696.6,1696.1,9.81306769]
[1659236386324,5.98536429,1696.6,1696.1,9.81306769]
[1659236386481,11.1184,1696.7,1696.2,2.89804672]
[1659236390547,11.0684,1696.7,1696.2,2.89804672]
[1659236392837,3.17988693,1696.8,1696.3,0.09952742]
[1659236393022,3.17988693,1696.8,1696.4,0.00320751]
[1659236398382,0.24518693,1696.8,1696.5,2.89804672]
[1659236400992,0.24518693,1696.8,1696.3,3.10012742]
[1659236401291,0.24518693,1696.8,1696.2,3.0]
[1659236401446,0.24518693,1696.8,1696.1,9.6423244]
[1659236401645,0.24518693,1696.8,1696.1,12.54037112]
[1659236401646,3.10588693,1696.8,1696.1,12.54037112]
[1659236402084,3.10588693,1696.8,1696.2,2.89804672]
[1659236402587,3.10588693,1696.8,1696.0,0.05]
[1659236402588,3.34004672,1696.7,1696.0,0.05]
[1659236402745,0.442,1696.7,1696.0,2.89804672]
[1659236402945,3.0893,1696.6,1696.0,3.05535618]
[1659236403188,3.0893,1696.6,1696.1,2.89804672]
[1659236403354,3.6027,1696.8,1696.1,2.89804672]
[1659236403355,3.3527,1696.8,1696.1,2.89804672]
[1659236403585,6.392,1696.8,1696.2,6.85777521]
[1659236403790,5.95,1696.8,1696.3,2.89804672]
[1659236404578,5.95,1696.8,1696.2,3.45730263]
[1659236406326,0.24518693,1696.7,1696.2,3.45730263]
[1659236406686,0.24518693,1696.7,1696.2,0.15730263]
[1659236406884,0.24518693,1696.7,1696.1,3.0262]
[1659236407114,0.24518693,1696.7,1696.1,5.92424672]
[1659236409214,0.24518693,1696.7,1696.1,5.93224672]
[1659236409432,0.15306449,1696.4,1696.1,5.93224672]
[1659236409933,0.15306449,1696.4,1696.1,0.008]
[1659236409934,0.4421,1696.3,1696.1,0.008]
[1659236410084,0.15306449,1696.4,1696.1,0.008]
[1659236410085,0.59516449,1696.4,1696.1,0.008]
[1659236410519,0.59516449,1696.4,1696.1,0.00425907]
[1659236410683,6.94896449,1696.4,1696.1,0.00425907]
[1659236412651,7.14896449,1696.4,1696.1,0.00425907]
[1659236413494,7.39415142,1696.4,1696.1,0.00425907]
[1659236415161,6.95205142,1696.4,1696.1,0.00425907]
[1659236415370,6.45205142,1696.4,1696.1,0.00425907]
[1659236415975,6.65205142,1696.4,1696.1,0.00425907]
[1659236419482,6.45205142,1696.4,1696.1,0.00425907]
[1659236426142,0.2,1696.3,1696.1,0.00425907]
[1659236426741,1.67406449,1696.2,1696.1,0.00425907]
[1659236427943,0.15306449,1696.2,1696.1,0.00425907]
[1659236429650,1.67406449,1696.2,1696.1,0.00425907]
[1659236429851,1.91925142,1696.2,1696.1,0.00425907]
[1659236444547,1.91654553,1696.2,1696.1,0.00425907]
[1659236450609,2.21654553,1696.2,1696.1,0.00425907]
[1659236450907,3.731231,1696.1,1695.7,0.05]
[1659236451067,3.0,1696.0,1695.4,0.05]
[1659236451269,3.0,1696.0,1695.3,3.2631]
[1659236451270,6.19804672,1696.0,1695.3,3.2631]
[1659236451497,3.899,1695.9,1695.3,3.2631]
[1659236451801,0.1503586,1695.6,1695.3,3.2631]
[1659236453243,0.1503586,1695.6,1695.1,0.10284808]
[1659236453456,0.1503586,1695.6,1695.1,3.0008948]
[1659236454840,0.69554553,1695.6,1695.1,3.0008948]
[1659236455852,0.69554553,1695.6,1695.0,10.9316]
[1659236456019,0.69554553,1695.6,1695.0,3.125]
[1659236456441,3.90774553,1695.6,1695.0,3.125]
[1659236460121,6.80579225,1695.6,1695.0,3.125]
[1659236462670,6.80579225,1695.6,1694.8,10.4075]
[1659236462871,6.85579225,1695.6,1694.8,15.88824672]
[1659236463194,6.85579225,1695.6,1694.7,0.05]
[1659236463195,0.2,1695.3,1694.7,0.05]
[1659236463405,0.2,1695.3,1694.5,3.1252]
[1659236463406,3.09804672,1695.3,1694.5,3.1252]
[1659236463556,4.14044672,1695.3,1694.5,5.97324672]
[1659236463965,0.1503586,1694.9,1694.5,5.97324672]
[1659236464518,0.1503586,1694.9,1694.2,0.05]
[1659236464519,0.2,1694.8,1694.2,0.05]
[1659236464682,0.2,1694.8,1694.1,3.2833]
[1659236464864,0.2,1694.8,1694.1,6.18134672]
[1659236465065,0.2,1694.8,1694.1,9.68134672]
[1659236465291,3.0955,1694.8,1694.1,10.12404672]
[1659236465616,8.3694586,1694.9,1694.2,6.39804672]
[1659236465812,8.3194586,1694.9,1694.3,10.54074672]
[1659236465997,0.1503586,1694.9,1694.6,3.5]
[1659236466207,0.1503586,1694.9,1694.5,0.4426]
[1659236466375,0.1503586,1694.9,1694.5,3.54212742]
[1659236467307,0.1503586,1694.9,1694.5,3.09952742]
[1659236468498,0.1503586,1694.9,1694.5,0.09952742]
[1659236470472,0.1503586,1694.9,1694.5,2.99757414]
[1659236470676,0.1503586,1694.9,1694.6,2.89804672]
[1659236470907,0.14816098,1694.9,1694.6,2.89804672]
[1659236472943,0.09816098,1694.9,1694.6,2.89804672]
[1659236474272,0.09816098,1694.9,1694.7,19.83317414]
[1659236474568,0.09816098,1694.9,1694.8,3.09804672]
[1659236474747,0.09816098,1694.9,1694.8,6.09804672]
[1659236475125,0.09816098,1694.9,1694.8,9.89804672]
[1659236475833,0.09816098,1694.9,1694.8,6.39804672]
[1659236476018,0.09816098,1694.9,1694.8,9.89804672]
[1659236477447,0.09816098,1694.9,1694.8,6.39804672]
[1659236477834,0.09816098,1694.9,1694.8,5.89804672]
[1659236478052,0.09816098,1694.9,1694.8,2.89804672]
[1659236479877,1.03016098,1694.9,1694.7,11.34712742]
[1659236480031,1.03016098,1694.9,1694.7,0.09952742]
[1659236480672,0.09816098,1694.9,1694.7,0.09952742]
[1659236485048,0.09816098,1694.9,1694.5,6.37846442]
[1659236485278,0.09816098,1694.9,1694.6,2.89804672]
[1659236485466,0.09816098,1694.9,1694.5,9.27651114]
[1659236487890,0.09816098,1694.9,1694.5,5.77651114]
[1659236488709,0.34471435,1694.8,1694.5,5.77651114]
[1659236489188,0.34471435,1694.8,1694.5,2.87846442]
[1659236489403,0.09816098,1694.6,1694.4,3.0]
[1659236489613,0.09816098,1694.6,1694.3,10.6609]
[1659236489825,0.09816098,1694.6,1694.3,10.67604672]
[1659236490182,0.09816098,1694.6,1694.3,14.17604672]
[1659236490632,0.09816098,1694.6,1694.4,2.89804672]
[1659236490797,0.09816098,1694.6,1694.5,3.5]
[1659236491001,0.09816098,1694.6,1694.5,9.39804672]
[1659236492415,0.09816098,1694.6,1694.5,5.89804672]
[1659236493127,0.09816098,1694.6,1694.5,9.39804672]
[1659236495045,0.09816098,1694.6,1694.5,5.89804672]
[1659236498025,0.09816098,1694.6,1694.5,9.39804672]
[1659236502811,0.09816098,1694.6,1694.5,5.89804672]
[1659236503013,0.09816098,1694.6,1694.5,9.39804672]
[1659236507239,0.09816098,1694.6,1694.5,5.89804672]
[1659236507616,0.09816098,1694.6,1694.4,3.0554]
[1659236509446,0.09595708,1694.6,1694.4,3.0554]
[1659236513847,0.09595708,1694.6,1694.5,6.5]
[1659236514286,0.09595708,1694.6,1694.5,3.0]
[1659236514658,0.09595708,1694.6,1694.5,6.5]
[1659236515401,0.09595708,1694.6,1694.5,3.0]
[1659236515583,0.09595708,1694.6,1694.5,6.5]
[1659236516691,0.05,1695.0,1694.5,6.5]
[1659236516897,6.7366,1695.1,1694.7,3.5]
[1659236516898,3.3187,1695.1,1694.7,3.5]
[1659236517068,0.05,1695.4,1694.9,3.5]
[1659236517272,0.34828128,1695.5,1694.9,6.39804672]
[1659236517803,0.34828128,1695.5,1694.9,2.89804672]
[1659236517987,0.34828128,1695.5,1694.8,5.89804672]
[1659236518188,0.4428,1695.4,1694.7,3.0908]
[1659236518373,2.89804672,1695.3,1694.6,3.05]
[1659236518568,2.89804672,1695.3,1694.5,3.05]
[1659236518569,0.4429,1695.2,1694.5,3.05]
[1659236518799,0.4429,1695.2,1694.5,5.89804672]
[1659236519153,0.4429,1695.2,1694.6,0.01733614]
[1659236519994,0.4429,1695.2,1694.7,2.89804672]
[1659236520211,3.6696,1695.4,1694.8,3.01733409]
[1659236520357,3.6696,1695.4,1695.1,0.2]
[1659236520358,3.1768,1695.4,1695.1,0.2]
[1659236520775,16.64838131,1695.6,1695.3,0.2]
[1659236520776,3.17438131,1695.6,1695.3,0.2]
[1659236520975,0.00378131,1695.6,1695.3,0.2]
[1659236521204,0.05,1695.9,1695.4,3.5]
[1659236521405,8.1709,1696.0,1695.3,3.09804672]
[1659236521617,0.34471435,1695.9,1695.4,3.0]
[1659236522577,0.34471435,1695.9,1695.3,6.59804672]
[1659236525217,0.34471435,1695.9,1695.4,2.89804672]
[1659236526432,0.34471435,1695.9,1695.3,3.7]
[1659236526433,0.2,1695.5,1695.2,0.05]
[1659236526614,0.2,1695.5,1694.9,0.05]
[1659236526813,0.2,1695.5,1695.0,6.21510373]
[1659236527031,0.05,1695.7,1695.0,9.71510373]
[1659236527240,6.9329,1695.8,1695.1,2.89804672]
[1659236527405,6.6829,1695.8,1695.1,2.89804672]
[1659236528836,9.88094672,1695.8,1695.0,2.94804672]
[1659236528995,9.88094672,1695.8,1695.0,2.89804672]
[1659236530400,6.9829,1695.8,1695.0,6.39804672]
[1659236530603,6.9829,1695.8,1695.1,6.21549482]
[1659236530814,6.2402,1695.8,1695.3,0.2]
[1659236531034,5.9402,1695.8,1695.5,0.2]
[1659236531233,5.9402,1695.8,1695.3,3.09804672]
[1659236532330,1.0,1696.4,1695.3,3.09804672]
[1659236532331,0.61432376,1697.0,1696.7,2.56832676]
[1659236532529,29.26244596,1698.8,1696.8,3.5]
[1659236532863,29.26244596,1698.8,1696.4,3.55]
[1659236532864,0.46735135,1697.5,1697.1,3.5]
[1659236533039,0.93464174,1697.8,1697.1,7.0]
[1659236533040,0.46735135,1697.6,1697.1,7.0]
[1659236533242,0.70102702,1698.1,1697.2,3.0]
[1659236533243,0.93464174,1697.9,1697.2,3.0]
[1659236533456,0.93464174,1697.9,1697.2,6.5]
[1659236533773,0.70102702,1698.2,1697.3,7.3]
[1659236533919,0.90935135,1698.4,1697.4,3.3]
[1659236533920,2.72228514,1698.3,1697.4,3.3]
[1659236534273,0.442,1698.4,1697.3,9.89804672]
[1659236534274,7.5,1698.4,1697.3,9.89804672]
[1659236534422,2.7757333,1698.1,1697.4,0.05]
[1659236534624,0.17598436,1698.2,1697.4,0.05]
[1659236534837,7.8131,1698.3,1697.3,2.94804672]
[1659236535119,0.4921,1698.2,1697.3,0.05]
[1659236535405,0.4421,1698.1,1697.3,0.05]
[1659236535556,0.4421,1698.1,1697.2,0.05]
[1659236535557,0.34471435,1698.0,1697.2,0.05]
[1659236535777,6.173,1697.8,1697.1,0.05]
[1659236535969,6.173,1697.8,1697.0,0.05]
[1659236535970,0.4422,1697.7,1697.0,0.05]
[1659236536174,0.4422,1697.7,1696.9,0.05]
[1659236536475,0.82069871,1697.6,1696.8,0.05]
[1659236536670,0.4423,1697.5,1696.7,0.05]
[1659236536869,0.4423,1697.5,1696.7,2.89804672]
[1659236537081,0.4423,1697.5,1696.7,6.59804672]
[1659236537249,0.34829075,1697.6,1696.9,0.05891]
[1659236537452,0.34829075,1697.6,1696.9,3.25695672]
[1659236537690,0.34829075,1697.6,1697.0,3.0]
[1659236537900,0.34829075,1697.6,1697.0,5.89804672]
[1659236538194,0.34471435,1697.6,1697.0,5.89804672]
[1659236538878,0.3490862,1697.6,1697.0,5.89804672]
[1659236539375,0.3490862,1697.6,1697.1,2.90094262]
[1659236539376,0.00437185,1697.6,1697.1,2.90094262]
[1659236539581,0.00437185,1697.6,1697.2,5.95693672]
[1659236539735,0.05,1697.9,1697.3,2.89804672]
[1659236539934,0.05,1698.0,1697.3,2.89804672]
[1659236540179,3.1009,1698.1,1697.4,0.05240687]
[1659236540335,3.0509,1698.1,1697.4,2.95045359]
[1659236540535,0.00437171,1697.9,1697.4,2.95045359]
[1659236541350,3.1009,1698.1,1697.4,2.95045359]
[1659236541577,3.1009,1698.1,1697.5,3.39804672]
[1659236541578,3.0509,1698.1,1697.5,3.39804672]
[1659236541776,0.05,1698.2,1697.6,5.95044742]
[1659236542079,10.3337,1698.3,1697.6,5.95044742]
[1659236542292,0.00437169,1698.0,1697.7,10.75692672]
[1659236542489,0.05,1698.3,1697.9,21.20983298]
[1659236542694,0.05,1698.5,1698.0,12.54014672]
[1659236542844,0.05,1698.7,1698.3,0.2]
[1659236543111,0.05,1698.9,1698.3,3.09804672]
[1659236543456,8.0241,1699.0,1698.3,3.09804672]
[1659236543744,3.68466107,1698.9,1698.2,0.10886]
[1659236543900,0.78661435,1698.9,1698.2,2.95690672]
[1659236544100,3.68466107,1698.9,1698.2,0.05886]
[1659236544547,3.54276107,1698.9,1698.2,0.05886]
[1659236544716,0.4419,1698.8,1698.2,0.05886]
[1659236545100,0.4419,1698.8,1698.2,3.15690672]
[1659236545313,0.39471435,1698.9,1698.2,2.95690672]
[1659236545522,0.34471435,1698.9,1698.2,2.95690672]
[1659236545720,3.24276107,1698.9,1698.2,0.05886]
[1659236545936,3.63994672,1698.8,1698.2,0.05886]
[1659236546119,2.89804672,1698.7,1698.2,0.05886]
[1659236546502,0.742,1698.6,1698.0,0.05]
[1659236546732,3.54276107,1698.5,1697.8,0.10888]
[1659236546930,3.54276107,1698.5,1697.2,5.29743592]
[1659236546931,11.44164672,1698.4,1697.7,0.05]
[1659236547245,3.19804672,1698.3,1697.6,0.05]
[1659236547558,8.5436,1698.4,1697.5,0.05]
[1659236547559,8.5936,1698.4,1697.5,0.05]
[1659236547724,8.4516,1698.4,1697.6,0.4422]
[1659236547925,11.34964672,1698.4,1697.6,0.4422]
[1659236548339,2.89804672,1698.3,1697.5,0.4923]
[1659236548525,2.89804672,1698.3,1697.4,8.1184]
[1659236548526,3.64014672,1698.3,1697.7,0.05888]
[1659236548726,2.89804672,1698.2,1697.5,0.05]
[1659236548973,3.19804672,1698.2,1697.4,8.1684]
[1659236549148,5.54278037,1698.1,1697.4,8.1184]
[1659236549328,3.19804672,1698.0,1697.3,0.10889]
[1659236549561,2.89804672,1697.9,1697.3,0.05889]
[1659236549735,0.35,1698.0,1697.3,2.98150192]
[1659236549928,0.4421,1698.1,1697.4,2.89804672]
[1659236549929,0.7921,1698.1,1697.4,2.89804672]
[1659236550134,0.05,1698.2,1697.5,2.89804672]
[1659236550510,8.5436,1698.4,1697.5,2.89804672]
[1659236550511,0.4921,1698.3,1697.6,0.05888]
[1659236550629,0.34471435,1698.1,1697.6,0.05888]
[1659236552332,0.34471435,1698.1,1697.6,0.00888]
[1659236552770,3.34014672,1698.0,1697.6,0.00888]
[1659236553085,3.34014672,1698.0,1697.3,0.05]
[1659236553086,3.24276107,1697.9,1697.3,0.05]
[1659236553376,2.89804672,1697.8,1697.1,0.05]
[1659236553528,2.89804672,1697.8,1697.2,0.0589]
[1659236553529,8.004,1697.8,1697.2,0.0589]
[1659236553933,8.004,1697.8,1697.2,2.95694672]
[1659236554184,1.43691435,1697.9,1697.3,2.89804672]
[1659236554386,0.94471435,1697.9,1697.3,0.4423]
[1659236554685,1.38691435,1697.9,1697.2,3.39924672]
[1659236555097,0.94471435,1697.9,1697.3,2.89804672]
[1659236555249,0.34471435,1697.9,1697.3,2.89804672]
[1659236555452,0.05,1698.0,1697.4,0.17598436]
[1659236555762,8.9544,1698.1,1697.6,0.05888]
[1659236555968,2.9833,1698.1,1697.6,0.05888]
[1659236556163,8.304,1698.2,1697.6,0.05888]
[1659236556366,0.05,1698.4,1697.7,3.64024672]
[1659236556598,0.00371981,1698.5,1697.8,14.02654672]
[1659236556599,7.94681981,1698.5,1697.8,14.02654672]
[1659236556768,7.94681981,1698.5,1697.8,8.1285]
[1659236556769,3.34004672,1698.4,1697.8,8.1285]
[1659236557487,0.442,1698.4,1697.8,8.1285]
[1659236557700,0.442,1698.4,1697.9,2.95692672]
[1659236557865,7.89682054,1698.5,1697.9,3.39912672]
[1659236558453,11.09486726,1698.5,1697.9,0.05888]
[1659236558651,0.742,1698.4,1697.9,0.05888]
[1659236559157,7.48476107,1698.4,1697.9,0.05888]
[1659236559369,7.48476107,1698.4,1697.7,0.05]
[1659236559567,7.48476107,1698.4,1697.6,0.50109]
[1659236559568,3.0,1698.3,1697.6,0.10889]
[1659236559805,0.4421,1698.2,1697.5,11.2461]
[1659236559954,6.69014672,1698.3,1697.6,0.05889]
[1659236560154,3.19804672,1698.2,1697.6,0.05889]
[1659236560469,0.4421,1698.1,1697.6,0.05889]
[1659236560868,0.4421,1698.2,1697.7,2.89804672]
[1659236561189,2.714,1698.4,1697.7,6.21061277]
[1659236561190,3.364,1698.4,1697.7,6.21061277]
[1659236561376,3.314,1698.4,1697.7,6.21061277]
[1659236561783,2.714,1698.4,1697.8,3.0]
[1659236561985,2.714,1698.4,1697.9,0.05887]
[1659236562187,2.714,1698.4,1697.9,2.95691672]
[1659236562385,7.89662537,1698.5,1697.9,2.95691672]
[1659236562586,0.34471435,1698.4,1697.9,2.95691672]
[1659236563629,7.8931,1698.5,1698.1,0.2]
[1659236563630,0.00437137,1698.5,1698.1,0.2]
[1659236563800,0.00437137,1698.5,1698.2,3.34014672]
[1659236564000,0.00437137,1698.5,1698.2,3.39900672]
[1659236564448,5.504,1698.8,1698.2,3.39900672]
[1659236564599,5.79871435,1698.8,1698.2,3.39900672]
[1659236565072,0.00437132,1698.7,1698.3,2.89804672]
[1659236565572,0.00437132,1698.7,1698.2,3.39900672]
[1659236565781,0.34471435,1698.8,1698.2,3.39900672]
[1659236566442,0.34808805,1698.8,1698.2,3.39900672]
[1659236566661,0.34808805,1698.8,1698.2,2.95690672]
[1659236567135,0.34471435,1698.8,1698.2,2.95690672]
[1659236567667,0.34808804,1698.8,1698.2,2.95690672]
[1659236568025,0.34808804,1698.8,1698.3,2.89804672]
[1659236568427,0.34471435,1698.8,1698.2,2.95945638]
[1659236569033,0.34471435,1698.8,1698.2,0.06140966]
[1659236569227,2.89804672,1698.7,1698.2,0.05886]
[1659236569428,3.19804672,1698.7,1698.2,0.05886]
[1659236569680,3.742,1698.6,1698.2,0.05886]
[1659236572850,0.442,1698.6,1698.2,0.05886]
[1659236573090,0.00383982,1698.7,1698.2,0.05886]
[1659236573266,3.52281435,1698.8,1698.2,0.05886]
[1659236573601,0.78661435,1698.8,1698.3,2.89804672]
[1659236573807,0.00383982,1698.7,1698.3,6.20924837]
[1659236574586,0.34471435,1698.8,1698.3,6.20924837]
[1659236575168,0.34871804,1698.8,1698.3,9.70924837]
[1659236575369,0.34871804,1698.8,1698.3,10.15134837]
[1659236575614,0.34871804,1698.8,1698.3,6.64823972]
[1659236575914,0.05,1699.0,1698.4,3.10507625]
[1659236576063,0.05,1699.2,1698.7,0.2]
[1659236576264,2.9345,1699.3,1698.7,3.09804672]
[1659236576494,0.00400368,1698.9,1698.5,0.10885]
[1659236576677,0.00400368,1698.9,1698.5,0.05885]
[1659236577331,0.05,1699.2,1698.7,3.5]
[1659236577495,0.90905135,1699.7,1698.8,3.33994672]
[1659236577496,0.05,1699.4,1698.8,3.33994672]
[1659236577683,0.34471435,1699.4,1698.8,3.39878672]
[1659236578383,0.00339172,1699.3,1698.8,3.39878672]
[1659236578583,0.00339172,1699.3,1698.7,2.8783]
[1659236578584,2.89804672,1699.2,1698.6,0.05]
[1659236578831,3.19804672,1699.2,1698.4,22.27477779]
[1659236578986,3.33994672,1699.1,1698.5,0.04855991]
[1659236579527,3.33994672,1699.1,1698.5,0.39327426]
[1659236579528,3.63994672,1699.1,1698.5,0.39327426]
[1659236580378,3.19804672,1699.1,1698.5,0.39327426]
[1659236581837,0.3,1699.1,1698.5,3.29132098]
[1659236582064,4.0918,1699.2,1698.5,3.29132098]
[1659236582269,4.0418,1699.2,1698.5,3.29132098]
[1659236582470,3.6,1699.2,1698.5,3.29132098]
[1659236583066,0.05,1699.3,1698.6,2.89804672]
[1659236583273,0.4417,1699.6,1698.8,0.2]
[1659236583274,0.05,1699.4,1698.8,0.2]
[1659236583592,6.0888815,1699.6,1698.7,0.40355435]
[1659236583593,3.33984672,1699.3,1698.7,0.40355435]
[1659236583794,2.89804672,1699.3,1698.7,0.40355435]
[1659236584468,3.3,1699.2,1698.7,0.40355435]
[1659236585718,6.19804672,1699.2,1698.7,0.34471435]
[1659236586004,6.63984672,1699.2,1698.7,0.34471435]
[1659236586609,3.7418,1699.2,1698.7,0.34471435]
[1659236586912,3.63984672,1699.2,1698.7,0.3909622]
[1659236587060,0.7418,1699.2,1698.7,0.3909622]
[1659236587261,3.7418,1699.2,1698.7,0.3909622]
[1659236587501,0.7418,1699.2,1698.7,0.3909622]
[1659236587704,0.7418,1699.3,1698.7,0.3909622]
[1659236587886,0.05,1699.4,1698.7,0.8329622]
[1659236588187,2.89804672,1699.3,1698.7,0.8329622]
[1659236588395,3.4418,1699.2,1698.5,0.05]
[1659236588596,3.4418,1699.2,1698.4,24.94177779]
[1659236588597,2.60011247,1699.0,1698.4,24.99177779]
[1659236588812,2.60011247,1699.0,1698.4,24.94177779]
[1659236588813,6.24005919,1699.0,1698.4,24.94177779]
[1659236589298,6.54005919,1699.0,1698.4,24.94177779]
[1659236589467,6.54005919,1699.0,1698.4,22.22477779]
[1659236590665,0.3,1699.0,1698.5,0.34933361]
[1659236590916,3.4686,1699.1,1698.5,0.34933361]
[1659236591100,3.4686,1699.1,1698.7,0.2]
[1659236591999,2.8686,1699.1,1698.7,0.34471435]
[1659236592741,2.7312,1699.3,1698.9,0.2]
[1659236592911,2.7312,1699.3,1698.9,0.34471435]
[1659236593133,2.7312,1699.3,1698.9,4.34471435]
[1659236593311,8.4886,1699.5,1698.9,7.24276107]
[1659236593513,8.6859,1699.6,1699.0,2.89804672]
[1659236593849,8.6859,1699.6,1699.1,0.34933198]
[1659236594147,5.6031,1699.6,1699.1,0.34933198]
[1659236594305,2.89804672,1699.5,1698.9,8.2645]
[1659236594506,3.23974672,1699.5,1698.9,8.2145]
[1659236594805,0.4417,1699.5,1698.9,8.2145]
[1659236595005,0.4417,1699.5,1698.9,11.49264793]
[1659236595207,1.0417,1699.6,1699.0,2.89804672]
[1659236595503,3.05,1699.7,1699.0,6.89877672]
[1659236595504,0.05,1699.7,1699.0,6.89877672]
[1659236595738,0.05,1699.8,1699.1,3.27814376]
[1659236595917,7.9969,1699.9,1699.2,2.89804672]
[1659236595918,8.0469,1699.9,1699.2,2.89804672]
[1659236596105,0.00332171,1699.8,1699.2,2.89804672]
[1659236596913,8.0469,1699.9,1699.2,2.89804672]
[1659236597102,7.9969,1699.9,1699.3,0.38009287]
[1659236597303,2.89804672,1699.8,1699.3,0.38009287]
[1659236597537,0.4417,1699.7,1699.3,1.93211149]
[1659236597742,6.63974672,1699.7,1699.3,1.93211149]
[1659236597949,4.0417,1699.7,1699.3,1.93211149]
[1659236598151,0.6,1699.7,1699.3,1.93211149]
[1659236598354,3.19804672,1699.7,1699.3,1.93211149]
[1659236598658,3.63974672,1699.6,1699.3,1.93211149]
[1659236599688,0.7417,1699.6,1699.3,1.93211149]
[1659236599893,0.7417,1699.8,1699.3,1.93211149]